bitfinex/quotes_ETHUSD_20251024
["timestamp","ask_amount","ask_price","bid_price","bid_amount"]
[1761346984586,13.91617674,3938.2,3937.7,0.002]
[1761346984587,3.04636905,3937.8,3937.7,0.002]
[1761346984896,11.63185996,3937.8,3937.7,0.002]
[1761346985098,11.73085996,3937.8,3937.7,0.002]
[1761346985273,13.34758683,3937.8,3937.7,0.002]
[1761346995413,14.02905508,3937.8,3937.7,0.002]
[1761346995608,13.93005508,3937.8,3937.7,0.002]
[1761346995821,17.06567774,3937.8,3937.7,0.002]
[1761346996137,13.34758683,3937.8,3937.7,0.002]
[1761346998509,17.06567774,3937.8,3937.7,0.002]
[1761346999135,13.34758683,3937.8,3937.7,0.002]
[1761346999337,14.25696521,3937.8,3937.7,0.002]
[1761347000127,17.06567774,3937.8,3937.7,0.002]
[1761347000524,13.34758683,3937.8,3937.7,0.002]
[1761347003433,17.06567774,3937.8,3937.7,0.002]
[1761347003737,17.06567774,3937.8,3937.3,0.002]
[1761347003738,3.04662704,3937.4,3937.3,0.002]
[1761347003920,16.25982959,3937.4,3937.3,0.002]
[1761347004119,16.35882959,3937.4,3937.3,0.002]
[1761347004751,17.04357376,3937.4,3937.3,0.002]
[1761347005251,15.67610886,3937.4,3937.3,0.002]
[1761347005460,3.04688508,3937.0,3936.9,0.002]
[1761347005643,11.50517599,3937.0,3936.9,0.002]
[1761347005843,11.63237599,3937.0,3936.9,0.002]
[1761347006164,11.83315366,3937.0,3936.9,0.002]
[1761347006461,14.82742405,3937.0,3936.9,0.002]
[1761347006673,13.91799031,3937.0,3936.9,0.002]
[1761347007265,14.82704987,3937.0,3936.9,0.002]
[1761347007442,13.91799031,3937.0,3936.9,0.002]
[1761347008056,14.8269901,3937.0,3936.9,0.002]
[1761347008370,13.91799031,3937.0,3936.9,0.002]
[1761347010638,15.28214093,3937.0,3936.9,0.002]
[1761347010830,15.28214093,3937.0,3936.5,0.002]
[1761347010831,0.50688,3936.6,3936.5,0.002]
[1761347011061,15.35172499,3936.6,3936.5,0.002]
[1761347011242,11.73263408,3936.6,3936.5,0.002]
[1761347011566,11.83442418,3936.6,3936.5,0.002]
[1761347012143,11.73542418,3936.6,3936.5,0.002]
[1761347012363,13.40044461,3936.6,3936.5,0.002]
[1761347012568,14.30894113,3936.6,3936.5,0.002]
[1761347013375,13.49944461,3936.6,3936.5,0.002]
[1761347014481,14.30864783,3936.6,3936.5,0.002]
[1761347014771,11.12264783,3936.6,3936.5,0.002]
[1761347015078,16.21464783,3936.6,3936.5,0.002]
[1761347015278,16.21464783,3936.6,3936.5,0.4738]
[1761347015577,16.21464783,3936.6,3936.5,0.002]
[1761347015578,15.30644461,3936.6,3936.5,0.002]
[1761347019782,13.40144461,3936.6,3936.5,0.002]
[1761347020983,13.40144461,3936.6,3936.5,0.4324]
[1761347021348,12.89456461,3936.6,3936.5,0.002]
[1761347021686,11.63463408,3936.6,3936.5,0.4324]
[1761347022285,9.1287832,3936.6,3936.5,0.4324]
[1761347022494,12.3157832,3936.6,3936.5,0.4324]
[1761347024268,11.63463408,3936.6,3936.5,0.4324]
[1761347024955,11.63463408,3936.6,3936.5,0.002]
[1761347025358,11.63463408,3936.6,3936.5,0.4324]
[1761347025892,12.3157832,3936.6,3936.5,0.4324]
[1761347026186,13.06585029,3936.6,3936.5,0.002]
[1761347026363,12.38470117,3936.6,3936.5,0.002]
[1761347026560,13.0664363,3936.6,3936.5,0.002]
[1761347027178,12.38470117,3936.6,3936.5,0.002]
[1761347031119,13.29290439,3936.6,3936.5,0.002]
[1761347033203,12.38470117,3936.6,3936.5,0.002]
[1761347033899,13.74751482,3936.6,3936.5,0.002]
[1761347034098,12.38470117,3936.6,3936.5,0.002]
[1761347034602,12.48648246,3936.6,3936.5,0.002]
[1761347035721,12.38470117,3936.6,3936.5,0.002]
[1761347036708,12.48370117,3936.6,3936.5,0.002]
[1761347037021,12.38470117,3936.6,3936.5,0.002]
[1761347038815,13.13327626,3936.6,3936.5,0.002]
[1761347043600,13.23227626,3936.6,3936.5,0.002]
[1761347044027,13.33406533,3936.6,3936.5,0.002]
[1761347045212,3.04727223,3936.4,3936.3,1e-08]
[1761347045526,4.72967223,3936.4,3936.3,1e-08]
[1761347045719,4.82867223,3936.4,3936.3,1e-08]
[1761347045921,5.04847223,3936.4,3936.3,1e-08]
[1761347048929,4.94947223,3936.4,3936.3,1e-08]
[1761347049146,9.06926731,3936.2,3936.1,0.002]
[1761347049303,12.25626731,3936.2,3936.1,0.002]
[1761347049509,12.48246731,3936.2,3936.1,0.002]
[1761347049834,12.93376731,3936.2,3936.1,0.002]
[1761347050031,15.47364411,3936.2,3936.1,0.002]
[1761347050229,15.37464411,3936.2,3936.1,0.002]
[1761347050397,15.47364411,3936.2,3936.1,0.002]
[1761347052539,15.37464411,3936.2,3936.1,0.002]
[1761347052706,15.47364411,3936.2,3936.1,0.002]
[1761347052906,21.86364411,3936.2,3936.1,0.002]
[1761347053107,21.86364411,3936.2,3935.7,0.002]
[1761347053108,3.04765951,3935.8,3935.7,0.002]
[1761347053305,13.09908118,3935.8,3935.7,0.002]
[1761347053515,13.40928118,3935.8,3935.7,0.002]
[1761347053715,13.78308118,3935.8,3935.7,0.002]
[1761347054317,15.14737322,3935.8,3935.7,0.002]
[1761347055214,15.14737322,3935.8,3933.9,0.8045]
[1761347055215,0.50688,3934.3,3933.9,0.226]
[1761347055414,2.54171144,3934.4,3933.9,0.226]
[1761347055415,0.63408,3934.0,3933.9,0.226]
[1761347055929,0.63408,3934.0,3933.9,0.6773]
[1761347059968,0.1272,3934.0,3933.9,0.6793]
[1761347060579,1.5552,3934.1,3933.9,0.6793]
[1761347060871,1.5552,3934.1,3934.0,0.77344193]
[1761347065655,1.5552,3934.1,3934.0,0.4513]
[1761347066069,4.7432,3934.1,3934.0,0.4513]
[1761347066272,1.5552,3934.1,3934.0,2.99319881]
[1761347066477,4.7432,3934.1,3934.0,3.12039881]
[1761347066775,4.7432,3934.1,3934.0,3.78580419]
[1761347066976,1.5552,3934.9,3934.0,1.24390538]
[1761347067274,0.1272,3934.6,3934.1,0.4513]
[1761347067480,3.189,3934.5,3934.2,2.54176065]
[1761347067639,3.189,3934.5,3934.3,2.54174765]
[1761347068071,4.7442,3934.5,3934.4,0.4513]
[1761347068574,4.7442,3934.5,3934.4,0.82696211]
[1761347070348,4.7442,3934.5,3934.4,3.36864572]
[1761347074895,4.7442,3934.5,3934.4,0.82696211]
[1761347075091,4.7442,3934.5,3934.4,0.4513]
[1761347083089,4.7442,3934.5,3934.3,0.89073654]
[1761347083415,4.7442,3934.5,3934.4,0.473]
[1761347093414,4.7442,3934.5,3934.3,0.89073654]
[1761347093913,4.7442,3934.5,3934.4,0.473]
[1761347094484,4.7442,3934.5,3934.3,0.89073654]
[1761347094912,4.7442,3934.5,3934.3,0.76353654]
[1761347094913,2.06208,3934.4,3934.3,0.76353654]
[1761347095215,2.06208,3934.4,3934.1,0.473]
[1761347095813,4.60378197,3934.4,3934.1,0.473]
[1761347097030,4.60378197,3934.4,3934.1,0.475]
[1761347097603,2.54175052,3934.3,3934.1,0.475]
[1761347097804,3.188,3934.2,3934.1,0.475]
[1761347098937,3.188,3934.2,3934.1,0.002]
[1761347100835,3.188,3934.2,3934.1,0.4528]
[1761347103659,8.46776421,3934.2,3934.1,0.002]
[1761347103960,12.16121118,3934.2,3934.1,0.002]
[1761347105141,12.28841118,3934.2,3934.1,0.002]
[1761347105455,9.74659836,3934.2,3934.1,0.002]
[1761347106525,8.59496421,3934.2,3934.1,0.002]
[1761347114075,4.8704,3934.2,3934.1,0.4327]
[1761347114644,11.13677703,3934.2,3934.1,0.002]
[1761347115975,11.23807703,3934.2,3934.1,0.002]
[1761347116339,11.13677703,3934.2,3934.1,0.002]
[1761347117674,12.56544127,3934.2,3934.1,0.002]
[1761347118384,13.17362127,3934.2,3934.1,0.002]
[1761347120096,13.17362127,3934.2,3933.7,0.002]
[1761347120097,2.54207127,3933.8,3933.7,0.002]
[1761347120391,4.9130369,3933.8,3933.7,0.002]
[1761347120588,10.42871039,3933.8,3933.7,0.002]
[1761347130076,10.55591039,3933.8,3933.7,0.002]
[1761347130274,3.63834618,3933.8,3933.7,0.002]
[1761347130478,3.82908,3933.8,3933.7,0.4327]
[1761347132299,3.82908,3933.8,3933.7,0.002]
[1761347132889,3.82908,3933.8,3933.7,0.4327]
[1761347133706,0.63408,3933.8,3933.7,0.002]
[1761347133916,3.3212,3933.8,3933.7,0.4327]
[1761347134423,3.3212,3933.8,3933.7,0.002]
[1761347136008,7.78354842,3933.8,3933.7,0.002]
[1761347136784,9.23464842,3933.8,3933.7,0.002]
[1761347136989,3.17647715,3933.8,3933.7,0.002]
[1761347137201,2.06208,3933.8,3933.7,0.002]
[1761347137377,5.25708,3933.8,3933.7,0.002]
[1761347138475,7.79915127,3933.8,3933.7,0.002]
[1761347142224,7.89815127,3933.8,3933.7,0.002]
[1761347144226,7.79915127,3933.8,3933.7,0.002]
[1761347144540,2.06208,3933.8,3933.7,0.002]
[1761347144701,5.25808,3933.8,3933.7,0.002]
[1761347147228,5.25808,3933.8,3933.7,0.4526]
[1761347147229,1.6824,3933.8,3933.7,0.4526]
[1761347147433,4.8774,3933.8,3933.7,0.4526]
[1761347149152,8.72760696,3933.8,3933.7,0.002]
[1761347149526,8.82860696,3933.8,3933.7,0.002]
[1761347149724,9.51101132,3933.8,3933.7,0.002]
[1761347150231,8.72760696,3933.8,3933.7,0.002]
[1761347154742,13.13479102,3933.8,3933.7,0.002]
[1761347155447,13.13477314,3933.8,3933.7,0.002]
[1761347158024,9.93977314,3933.8,3933.7,0.002]
[1761347158358,12.21231745,3933.8,3933.7,0.002]
[1761347158861,8.48775324,3933.8,3933.7,0.002]
[1761347159158,8.61495324,3933.8,3933.7,0.002]
[1761347160125,7.93235127,3933.8,3933.7,0.002]
[1761347160338,7.93235127,3933.8,3933.7,0.4454]
[1761347161527,7.42447127,3933.8,3933.7,0.4454]
[1761347162655,4.22447127,3933.8,3933.7,0.4454]
[1761347162959,7.42447127,3933.8,3933.7,0.4454]
[1761347163327,1.5552,3933.8,3933.7,0.4454]
[1761347163523,4.7552,3933.8,3933.7,0.4454]
[1761347164928,1.5552,3933.8,3933.7,0.4454]
[1761347165136,3.2,3933.8,3933.7,0.4454]
[1761347165526,4.7552,3933.8,3933.7,0.4454]
[1761347166729,4.7552,3933.8,3933.7,0.75708601]
[1761347168464,4.7542,3933.8,3933.7,0.75708601]
[1761347168960,0.001,3933.9,3933.7,0.75708601]
[1761347169264,0.001,3933.9,3933.7,2.54409107]
[1761347169265,3.199,3933.8,3933.7,2.54409107]
[1761347169736,3.199,3933.8,3933.7,3.14449107]
[1761347173176,3.199,3933.8,3933.7,0.1292]
[1761347173335,0.50688,3933.6,3931.6,0.91026809]
[1761347173535,0.50688,3933.6,3930.9,0.2346]
[1761347173536,1.5552,3931.9,3931.0,0.4732]
[1761347173748,1.5552,3931.5,3931.0,0.4732]
[1761347174051,2.54334198,3931.9,3931.0,0.4732]
[1761347174052,1.5552,3931.3,3931.0,0.4732]
[1761347174291,3.214,3931.2,3931.0,0.4732]
[1761347176977,1.5552,3932.1,3931.3,2.54366396]
[1761347177177,1.5552,3931.9,3931.4,0.4732]
[1761347177382,1.5552,3931.9,3931.4,0.80741891]
[1761347177560,3.215,3931.8,3931.4,3.35101148]
[1761347177757,5.15404166,3933.0,3931.5,0.4732]
[1761347177962,4.09818099,3932.4,3931.6,2.54347686]
[1761347178168,3.215,3932.5,3931.7,2.84508579]
[1761347178477,3.215,3932.4,3931.8,0.4732]
[1761347178912,1.5552,3932.3,3931.8,3.0165629]
[1761347179212,1.5552,3932.3,3931.8,0.4732]
[1761347179511,3.215,3932.4,3932.2,0.2344]
[1761347180013,3.215,3932.4,3932.2,0.7076]
[1761347180911,3.215,3932.3,3932.2,0.2344]
[1761347181210,0.0741,3933.5,3932.2,0.2344]
[1761347181410,0.0741,3933.5,3932.3,0.4732]
[1761347181411,1.5552,3933.3,3932.3,0.4732]
[1761347181612,4.47143969,3933.8,3932.3,0.4732]
[1761347181812,2.54234603,3933.4,3932.6,2.54284278]
[1761347182109,3.215,3933.3,3932.7,0.4732]
[1761347182322,4.47143969,3933.8,3932.7,3.01597972]
[1761347182323,3.215,3933.2,3932.7,3.01597972]
[1761347182483,3.215,3933.2,3932.8,0.30159797]
[1761347182683,1.5552,3933.2,3933.1,0.2344]
[1761347182883,4.7702,3933.2,3933.1,0.2344]
[1761347183208,4.7702,3933.2,3933.1,0.7076]
[1761347185135,3.215,3933.2,3933.1,0.7076]
[1761347185893,0.1272,3933.8,3933.1,1.17254491]
[1761347186092,3.215,3933.7,3933.3,0.1272]
[1761347186589,3.215,3933.7,3933.4,0.4732]
[1761347187023,0.1272,3933.8,3933.4,0.4732]
[1761347187024,3.215,3933.6,3933.4,0.4732]
[1761347190327,3.215,3933.6,3933.4,3.0155191]
[1761347190713,3.215,3933.6,3933.5,0.4732]
[1761347193045,3.215,3933.6,3933.5,0.6004]
[1761347199703,3.215,3933.6,3933.5,3.14266515]
[1761347200104,3.215,3933.6,3933.5,0.6004]
[1761347201404,3.215,3933.6,3933.1,0.2344]
[1761347201635,3.215,3933.6,3933.4,0.1272]
[1761347202734,3.215,3933.6,3933.4,0.11597754]
[1761347205737,3.215,3933.6,3933.4,0.57647754]
[1761347205941,3.215,3933.6,3933.4,0.11597754]
[1761347206541,3.215,3933.6,3933.4,0.57647754]
[1761347206736,3.215,3933.6,3933.4,0.11597754]
[1761347207120,3.216,3933.6,3933.4,0.11597754]
[1761347211524,3.216,3933.6,3933.5,0.4605]
[1761347211723,3.76202747,3933.6,3933.4,0.11597754]
[1761347211954,3.216,3933.6,3933.4,0.11597754]
[1761347214825,0.54626347,3933.5,3933.4,0.11597754]
[1761347215025,3.216,3933.6,3933.4,0.11597754]
[1761347215275,0.54641056,3933.5,3933.4,0.11597754]
[1761347226312,0.54641056,3933.5,3933.4,0.11797754]
[1761347227206,0.54641056,3933.5,3933.4,2.66030733]
[1761347228521,0.54641056,3933.5,3933.4,0.11797754]
[1761347232126,0.54641056,3933.5,3933.4,3.12030733]
[1761347236109,3.216,3933.6,3933.5,2.54226515]
[1761347236311,3.76260493,3933.6,3933.5,2.54226515]
[1761347237135,3.76260493,3933.6,3933.4,3.12029041]
[1761347237318,3.216,3933.6,3933.4,3.12029041]
[1761347238099,3.216,3933.6,3933.5,3.00226515]
[1761347238433,3.7625957,3933.6,3933.5,3.00226515]
[1761347239145,3.7625957,3933.6,3933.5,0.46]
[1761347239438,3.7625957,3933.6,3933.5,3.00226515]
[1761347239647,3.7625957,3933.6,3933.5,2.54226515]
[1761347239844,3.216,3933.6,3933.5,3.00226515]
[1761347241337,3.203,3933.6,3933.5,3.00226515]
[1761347242315,0.001,3933.6,3933.5,3.00226515]
[1761347242642,0.001,3933.6,3933.5,3.56872483]
[1761347242643,3.203,3933.6,3933.5,3.56872483]
[1761347255229,3.203,3933.6,3933.5,3.10872483]
[1761347255868,3.203,3933.6,3933.5,3.56872483]
[1761347258643,3.203,3933.6,3933.5,3.00226515]
[1761347260930,3.203,3933.6,3933.5,2.54226515]
[1761347261134,3.3031,3933.6,3933.4,0.002]
[1761347261465,0.1001,3933.5,3933.4,0.002]
[1761347270977,0.001,3933.6,3933.4,0.002]
[1761347271168,3.202,3933.5,3933.4,0.002]
[1761347274593,0.001,3933.6,3933.4,0.002]
[1761347274881,3.3021,3933.5,3933.4,0.002]
[1761347280493,3.202,3933.5,3933.4,0.002]
[1761347281489,3.203,3933.5,3933.4,0.002]
[1761347290203,3.74908403,3933.5,3933.4,0.002]
[1761347292617,3.74908403,3933.5,3933.4,2.54432979]
[1761347292779,3.74908403,3933.5,3933.4,3.01552979]
[1761347292980,3.74893815,3933.5,3933.4,3.14272979]
[1761347293185,3.203,3933.5,3933.4,3.14272979]
[1761347298023,3.203,3933.5,3933.4,2.67152979]
[1761347300729,3.203,3933.5,3933.4,0.1292]
[1761347301027,3.74873254,3933.5,3933.4,0.1292]
[1761347304524,3.84883254,3933.5,3933.4,0.002]
[1761347304828,4.22390579,3933.5,3933.4,0.002]
[1761347308335,3.84883254,3933.5,3933.4,0.002]
[1761347308912,3.74873254,3933.5,3933.4,0.002]
[1761347334497,5.81081254,3933.5,3933.4,0.002]
[1761347334685,13.73469022,3933.5,3933.4,0.002]
[1761347334999,14.72416514,3933.5,3933.4,0.002]
[1761347335279,15.67865614,3933.5,3933.4,0.002]
[1761347340249,0.50688,3933.1,3933.0,0.00107171]
[1761347340455,5.80281254,3933.1,3932.5,0.469697]
[1761347340681,0.54573254,3933.0,3932.5,2.54290532]
[1761347340863,5.25708,3933.1,3932.6,2.5428083]
[1761347341068,0.54496959,3933.0,3932.6,2.5428083]
[1761347341870,5.25708,3933.1,3932.6,2.5428083]
[1761347342489,5.25708,3933.1,3932.7,0.4718]
[1761347342786,5.25708,3933.1,3932.7,3.03999941]
[1761347343155,5.25708,3933.1,3932.8,0.4718]
[1761347345491,4.7502,3933.1,3932.8,0.4218]
[1761347345795,4.7502,3933.1,3932.8,2.96447377]
[1761347346162,4.7502,3933.1,3932.8,2.54267377]
[1761347346904,4.7502,3933.1,3932.6,2.54281858]
[1761347347066,3.195,3933.1,3933.0,2.54258835]
[1761347347575,3.195,3933.1,3933.0,3.01348835]
[1761347349882,3.195,3933.1,3933.0,2.54258835]
[1761347350066,3.195,3933.1,3933.0,3.01348835]
[1761347350268,3.196,3933.1,3933.0,3.01348835]
[1761347350469,3.196,3933.1,3933.0,3.14068835]
[1761347355481,3.196,3933.1,3933.0,0.1272]
[1761347359575,3.196,3933.1,3933.0,2.66978835]
[1761347359902,3.196,3933.1,3933.0,0.5981]
[1761347361975,3.196,3933.1,3933.0,0.1272]
[1761347362603,3.196,3933.1,3933.0,0.5981]
[1761347363975,3.196,3933.1,3933.0,3.14068835]
[1761347364177,3.196,3933.1,3933.0,0.1272]
[1761347364404,3.196,3933.1,3932.8,0.002]
[1761347368506,3.3477,3933.1,3932.8,0.002]
[1761347369612,4.31061213,3932.9,3932.8,0.002]
[1761347369778,6.41161363,3932.9,3932.8,0.002]
[1761347369976,6.72801363,3932.9,3932.8,0.002]
[1761347370176,9.27066663,3932.9,3932.8,0.002]
[1761347370402,3.0007815,3932.9,3932.8,0.002]
[1761347370601,3.54992759,3932.9,3932.8,0.002]
[1761347372606,2.1010015,3932.9,3932.8,0.002]
[1761347372807,5.2960015,3932.9,3932.8,0.002]
[1761347377009,8.1568545,3932.9,3932.8,0.002]
[1761347377487,12.39096663,3932.9,3932.8,0.002]
[1761347379703,12.51816663,3932.9,3932.8,0.002]
[1761347380015,14.09245702,3932.9,3932.8,0.002]
[1761347383640,14.09345702,3932.9,3932.8,0.002]
[1761347386695,14.77466901,3932.9,3932.8,0.002]
[1761347387996,14.09345702,3932.9,3932.8,0.002]
[1761347388192,14.22065702,3932.9,3932.8,0.002]
[1761347390541,14.22165702,3932.9,3932.8,0.002]
[1761347394440,11.73172661,3932.9,3932.8,0.002]
[1761347394640,14.09445702,3932.9,3932.8,0.002]
[1761347394965,15.45591722,3932.9,3932.8,0.002]
[1761347395121,14.09445702,3932.9,3932.8,0.002]
[1761347400730,14.84218957,3932.9,3932.8,0.002]
[1761347403026,16.20300115,3932.9,3932.8,0.002]
[1761347404473,16.33020115,3932.9,3932.8,0.002]
[1761347406462,16.20300115,3932.9,3932.8,0.002]
[1761347407165,14.84218957,3932.9,3932.8,0.002]
[1761347413892,14.71498957,3932.9,3932.8,0.002]
[1761347415060,21.10498957,3932.9,3932.8,0.002]
[1761347419198,3.04979163,3932.5,3932.4,0.002]
[1761347419364,13.39692979,3932.5,3932.4,0.002]
[1761347420062,14.95212979,3932.5,3932.4,0.002]
[1761347421799,13.588228,3932.5,3932.4,0.002]
[1761347423210,14.95212979,3932.5,3932.4,0.002]
[1761347424004,15.07932979,3932.5,3932.4,0.002]
[1761347440923,13.715428,3932.5,3932.4,0.002]
[1761347446722,13.820728,3932.5,3932.4,0.002]
[1761347450495,13.82131421,3932.5,3932.4,0.002]
[1761347451726,16.49931421,3932.5,3932.4,0.002]
[1761347451930,13.82131421,3932.5,3932.4,0.002]
[1761347456213,13.71601421,3932.5,3932.4,0.002]
[1761347456415,13.82131421,3932.5,3932.4,0.002]
[1761347459398,15.72931421,3932.5,3932.4,0.002]
[1761347461112,10.51901421,3932.5,3932.4,0.002]
[1761347461316,15.62401421,3932.5,3932.4,0.002]
[1761347461517,10.51901421,3932.5,3932.4,0.002]
[1761347461819,13.71501421,3932.5,3932.4,0.002]
[1761347462714,12.96986003,3932.5,3932.4,0.002]
[1761347464732,12.96986003,3932.5,3932.4,0.441]
[1761347468643,12.96986003,3932.5,3932.4,0.002]
[1761347469509,16.69967053,3932.5,3932.4,0.002]
[1761347470948,12.96986003,3932.5,3932.4,0.002]
[1761347472934,12.96986003,3932.5,3932.4,0.4339]
[1761347473148,12.20438984,3932.5,3932.4,0.4339]
[1761347473623,13.56980102,3932.5,3932.4,0.4339]
[1761347474019,3.13918078,3932.5,3932.4,0.4339]
[1761347474219,3.13918078,3932.5,3932.4,0.8678]
[1761347474220,6.41249934,3932.5,3932.4,0.8678]
[1761347474425,7.96769934,3932.5,3932.4,0.8678]
[1761347475226,8.65003268,3932.5,3932.4,0.8678]
[1761347476659,6.10712105,3932.5,3932.4,0.8678]
[1761347476853,5.42478771,3932.5,3932.4,0.8678]
[1761347492986,7.96769934,3932.5,3932.4,0.8678]
[1761347494283,5.42478771,3932.5,3932.4,0.8678]
[1761347495279,7.96769934,3932.5,3932.4,0.8678]
[1761347498600,5.42478771,3932.5,3932.4,0.8678]
[1761347507940,7.96769934,3932.5,3932.4,0.8678]
[1761347516745,5.42478771,3932.5,3932.4,0.8678]
[1761347517344,7.96769934,3932.5,3932.4,0.8678]
[1761347518222,5.42478771,3932.5,3932.4,0.8678]
[1761347520523,5.42434542,3932.5,3932.4,0.8678]
[1761347523971,7.96725705,3932.5,3932.4,0.8678]
[1761347524284,5.42434542,3932.5,3932.4,0.8678]
[1761347525076,3.86914542,3932.5,3932.4,0.8678]
[1761347525379,3.74194542,3932.5,3932.4,1.23072163]
[1761347527179,3.196,3932.5,3932.4,1.23072163]
[1761347528552,0.001,3932.8,3932.7,2.54278231]
[1761347528758,3.196,3932.8,3932.7,2.54278231]
[1761347529059,3.196,3932.8,3932.7,3.6285374]
[1761347529281,3.196,3932.8,3932.7,4.39234999]
[1761347538502,3.196,3932.8,3932.7,4.51954999]
[1761347545885,0.001,3932.8,3932.7,4.51954999]
[1761347551019,0.001,3932.8,3932.7,4.54497781]
[1761347551396,0.001,3932.8,3932.7,4.51954999]
[1761347556452,0.001,3932.8,3932.7,4.54497781]
[1761347557332,0.001,3932.8,3932.7,4.51954999]
[1761347557527,0.001,3932.8,3932.7,6.07474999]
[1761347565456,0.001,3932.8,3932.7,5.62264999]
[1761347565641,0.001,3932.8,3932.7,5.49544999]
[1761347575370,0.001,3932.8,3932.7,5.96134999]
[1761347575558,0.001,3932.8,3932.7,6.08854999]
[1761347579552,0.001,3932.8,3932.7,5.62264999]
[1761347580593,2.54310564,3932.2,3932.1,1.37163494]
[1761347580771,2.54310564,3932.2,3930.7,0.10187345]
[1761347580772,2.54336436,3931.8,3930.7,0.10187345]
[1761347580940,4.47352706,3931.3,3930.7,0.10187345]
[1761347581142,4.47352706,3931.3,3929.5,0.2224]
[1761347581143,0.1888,3930.8,3929.6,8.213]
[1761347581338,0.1888,3930.8,3930.0,0.4744]
[1761347581564,0.099,3930.7,3930.1,2.54440128]
[1761347581870,0.099,3930.7,3930.2,2.54437684]
[1761347582369,0.099,3930.7,3930.2,3.30863113]
[1761347582765,0.099,3930.7,3930.2,2.54437684]
[1761347583065,0.099,3930.7,3930.3,0.76425429]
[1761347586344,0.099,3930.7,3930.2,2.54438127]
[1761347587259,0.099,3930.7,3930.3,2.54433438]
[1761347589189,0.099,3930.7,3930.3,2.54633438]
[1761347589852,0.099,3930.7,3930.4,2.54425967]
[1761347590353,3.212,3930.7,3930.4,2.54425967]
[1761347590551,3.212,3930.7,3930.5,0.1272]
[1761347591065,0.099,3930.6,3930.5,0.1272]
[1761347593662,0.1879,3931.5,3930.5,0.1272]
[1761347593874,0.1272,3931.3,3930.6,2.54408614]
[1761347594190,1.5361,3931.4,3930.7,2.67126625]
[1761347594388,0.0999,3931.3,3930.7,2.67126625]
[1761347594789,0.0999,3931.3,3930.7,0.1272]
[1761347595086,0.0999,3931.3,3931.0,0.1272]
[1761347597675,0.0999,3931.3,3931.0,2.67106471]
[1761347597987,0.0999,3931.3,3931.0,2.67107476]
[1761347598556,0.0999,3931.3,3931.0,0.1272]
[1761347599075,1.309,3931.4,3931.0,0.1272]
[1761347599391,1.4089,3931.4,3931.0,0.1272]
[1761347599759,1.309,3931.4,3931.0,0.1272]
[1761347599989,0.0999,3931.3,3931.0,0.1272]
[1761347601276,0.0999,3931.3,3931.0,2.67105481]
[1761347604766,1.309,3931.4,3931.0,2.67105481]
[1761347604973,1.4089,3931.4,3931.0,2.67105481]
[1761347606281,1.4089,3931.4,3931.0,2.67305481]
[1761347608200,0.54371224,3931.3,3931.0,2.67305481]
[1761347609274,0.54371224,3931.2,3931.0,2.67305481]
[1761347609476,0.54371224,3931.1,3931.0,2.67305481]
[1761347609908,0.54371224,3931.1,3931.0,0.1292]
[1761347610388,0.54371224,3931.1,3931.0,2.67308196]
[1761347610622,0.54371224,3931.1,3931.0,3.14238196]
[1761347611205,1.309,3931.4,3931.0,3.14238196]
[1761347611401,0.54503497,3931.3,3931.0,3.14238196]
[1761347611575,0.54503497,3931.2,3931.0,3.14238196]
[1761347611785,1.309,3931.4,3931.0,3.14238196]
[1761347611980,0.54503497,3931.3,3931.0,3.14238196]
[1761347612206,0.54503497,3931.2,3931.0,3.14238196]
[1761347612413,0.54501775,3931.1,3931.0,0.1292]
[1761347619116,0.54501775,3931.1,3931.0,0.5983]
[1761347620411,0.54501775,3931.1,3931.0,0.1292]
[1761347629122,6.91889993,3931.1,3931.0,0.002]
[1761347629423,7.4774082,3931.1,3931.0,0.002]
[1761347631609,4.93359095,3931.1,3931.0,0.002]
[1761347631806,0.64401775,3931.1,3931.0,0.002]
[1761347635306,3.84901775,3931.1,3931.0,0.002]
[1761347640650,3.75001775,3931.1,3931.0,0.002]
[1761347641020,3.74801775,3931.1,3931.0,0.002]
[1761347653253,3.74801775,3931.1,3931.0,0.4512]
[1761347653715,3.74801775,3931.1,3931.0,0.002]
[1761347658466,6.291835,3931.1,3931.0,0.002]
[1761347660359,11.81833666,3931.1,3931.0,0.002]
[1761347660635,13.35899481,3931.1,3931.0,0.002]
[1761347661134,11.95053666,3931.1,3931.0,0.002]
[1761347661564,11.82333666,3931.1,3931.0,0.002]
[1761347661771,11.92524086,3931.1,3931.0,0.002]
[1761347662245,11.82333666,3931.1,3931.0,0.002]
[1761347666171,12.50448134,3931.1,3931.0,0.002]
[1761347668765,12.40548134,3931.1,3931.0,0.002]
[1761347669068,12.50448134,3931.1,3931.0,0.002]
[1761347669576,7.34698371,3931.1,3931.0,0.002]
[1761347670074,7.24698371,3931.1,3931.0,0.002]
[1761347670285,7.37418371,3931.1,3931.0,0.002]
[1761347670449,7.47318371,3931.1,3931.0,0.002]
[1761347673273,7.37418371,3931.1,3931.0,0.002]
[1761347674082,7.47318371,3931.1,3931.0,0.002]
[1761347674589,6.423035,3931.1,3931.0,0.002]
[1761347674991,6.522035,3931.1,3931.0,0.002]
[1761347677691,7.20317968,3931.1,3931.0,0.002]
[1761347679195,6.522035,3931.1,3931.0,0.002]
[1761347680298,12.55358795,3931.1,3931.0,0.002]
[1761347680592,14.16699362,3931.1,3931.0,0.002]
[1761347687309,15.07657177,3931.1,3931.0,0.002]
[1761347690308,14.16699362,3931.1,3931.0,0.002]
[1761347693377,14.57487362,3931.1,3931.0,0.002]
[1761347693581,16.0392848,3931.1,3931.0,0.002]